Cogmind - Beta 9.6 @@@ ROGUE MODE // 2020.05.19 @ 16:00:46 Player: Aere Result: Destroyed by Y-45 Defender with Heavy Assault Rifle Performance ------------- Evolutions (1) 500 Regions Visited (3) 600 Robots Destroyed (22) 110 Value Destroyed (417) 417 Prototype IDs (0) 0 Alien Tech Used (0) 0 Bonus (0) 0 TOTAL SCORE: 1627 Bonus ------- None Cogmind --------- Core Integrity 0/400 Matter 9/300 Energy 98/100 System Corruption 0% Temperature Cool (9) Movement Rolling (90) Location -9/Materials Parts ------- > --- POWER (2) -------- (None) > --- PROPULSION (2) --- Armored Wheel > --- UTILITY (2) ------ Structural Scanner Utility Shielding > --- WEAPON (3) ------- (None) > --- INVENTORY (4) ---- Improved Terrain Scanner Light Cannon Mace Peak State ------------ > --- POWER ------------ (None) > --- PROPULSION ------- Improved Treads Improved Treads > --- UTILITY ---------- Improved Terrain Scanner Utility Shielding > --- WEAPON ----------- Heavy Battle Rifle Rocket Launcher > --- INVENTORY -------- Light Cannon Light Cannon [Rating: 13] Favorites ----------- Power Ion Engine Engine Ion Engine Propulsion Improved Treads Treads Improved Treads Leg Aluminum Leg Wheel Armored Wheel Utility Utility Shielding Device Improved Terrain Scanner Processor Seismic Analyzer Protection Utility Shielding Weapon Rocket Launcher Energy Gun Small Laser Ballistic Gun Light Assault Rifle Ballistic Cannon Light Cannon Launcher Rocket Launcher Build | -11 -10 -10 -9 ------- Run | Scr Mat Min Mat Slots Evolved 2 | . . . 2 Power 1 | . . . 1 Propulsion . | . . . . Utility . | . . . . Weapon 1 | . . . 1 Parts Attached 25 | 11 9 1 4 Power 2 | 2 . . . Engine 2 | 2 . . . Core . | . . . . Reactor . | . . . . Propulsion 7 | 4 2 . 1 Treads 2 | . 2 . . Leg 2 | 2 . . . Wheel 3 | 2 . . 1 Hover . | . . . . Flight . | . . . . Utility 5 | 2 1 . 2 Device 2 | 1 . . 1 Storage . | . . . . Processor 1 | 1 . . . Hackware . | . . . . Protection 2 | . 1 . 1 Artifact . | . . . . Weapon 11 | 3 6 1 1 Energy Gun 1 | 1 . . . Energy Cannon . | . . . . Ballistic Gun 4 | 2 1 1 . Ballistic Cannon 3 | . 2 . 1 Launcher 3 | . 3 . . Special Weapon . | . . . . Impact Weapon . | . . . . Slashing Weapon . | . . . . Piercing Weapon . | . . . . Special Melee Weapon . | . . . . Unidentified Prototypes . | . . . . Parts Lost 7 | . 1 . 6 Power 1 | . 1 . . Propulsion 2 | . . . 2 Utility 1 | . . . 1 Weapon 3 | . . . 3 Highest Loss Streak 5 | . 1 . 5 Average Slot Usage (%) 75 | . 95 85 50 Engine 3 | . 11 . . Treads 20 | . 21 28 14 Leg 1 | . 5 . . Device 10 | . 14 14 5 Processor 3 | . 10 . . Protection 11 | . 3 14 15 Ballistic Gun 6 | . 7 2 7 Ballistic Cannon 5 | . 6 11 . Launcher 10 | . 13 14 6 Naked Turns . | . . . . Heaviest Build 14 | 8 14 10 12 Greatest Support 46 | 20 46 46 46 Greatest Overweight (x) 1 | . . . 1 Average Overweight (x) . | . . . . Largest Inventory Capacity 4 | 4 4 4 4 Average Capacity 4 | 4 4 4 4 Most Carried 4 | 4 4 2 4 Average Carried 2 | 2 1 1 3 Final Capacity 4 | 4 4 4 4 Final Carried 4 | 4 1 2 3 Class Distribution -------------------- 94% | Mutant 5% | Scavenger-Mutant Dominant Class ---------------- Mutant | -10/Materials Mutant | -10/Mines Mutant | -9/Materials Resources | -11 -10 -10 -9 ----------- Run | Scr Mat Min Mat Matter Collected 535 | 304 180 . 51 Remotely . | . . . . Salvage Created 463 | 110 274 . 79 Parts 36 | 13 19 . 4 Haulers Intercepted 1 | . 1 . . Recyclers Shooed 3 | . 3 . . Parts Field Recycled . | . . . . Retrieved Matter . | . . . . Parts Self-Destructed . | . . . . Prevented . | . . . . Kills | -11 -10 -10 -9 ------- Run | Scr Mat Min Mat Combat Hostiles Destroyed 13 | 1 9 . 3 Melee 1 | . . . 1 Guns 2 | 1 . . 1 AOE 10 | . 9 . 1 Classes Destroyed 8 | 3 4 . 1 Worker 1 | 1 . . . Tunneler 3 | 3 . . . Hauler 1 | . 1 . . Recycler 2 | . 2 . . Watcher 2 | . 2 . . Swarmer 6 | . 6 . . Grunt 6 | 1 3 . 2 Sentry 1 | . . . 1 Best Kill Streak 6 | 4 6 . 1 Combat Bots Only 3 | 1 3 . 1 Max Kills in Single Turn 3 | 1 3 . 1 Gunslinging . | . . . . Exploded 2 | . 2 . 1 Melee 1 | . . . 1 Uniques/NPCs Destroyed . | . . . . Combat | -11 -10 -10 -9 -------- Run | Scr Mat Min Mat Damage Taken 1396 | 46 236 . 1114 Core 450 | . 36 . 414 Absorbed by Shields . | . . . . Core Remaining (%) 92 | 100 . 85 . Volleys Fired 43 | 13 16 . 14 Largest 2 | 2 2 . 2 Hottest 70 | 40 70 . 66 Shots Fired 80 | 26 32 . 22 Gun 41 | 26 3 . 12 Cannon 9 | . 7 . 2 Launcher 30 | . 22 . 8 Special . | . . . . Kinetic 50 | 26 10 . 14 Thermal . | . . . . Explosive 30 | . 22 . 8 Electromagnetic . | . . . . Robot Hit Streak 10 | 10 6 . 8 Robot Miss Streak 3 | 3 3 . 1 Penetration Max . | . . . . Secondary Targets . | . . . . Shots Hit Robots 45 | 17 13 . 15 Core Hits 38 | 10 21 . 7 Critical Hits . | . . . . Critical Kills . | . . . . Critical Parts Destroyed . | . . . . Melee Attacks . | . . . . Impact . | . . . . Slashing . | . . . . Piercing . | . . . . Sneak Attacks . | . . . . Combat Hostiles . | . . . . Follow-up Attacks . | . . . . Damage Inflicted 1539 | 152 920 . 467 Guns 343 | 152 10 . 181 Cannons 90 | . 70 . 20 Explosions 1097 | . 840 . 257 Melee . | . . . . Ramming 9 | . . . 9 Kinetic 433 | 152 80 . 201 Thermal . | . . . . Explosive 1097 | . 840 . 257 Electromagnetic . | . . . . Impact . | . . . . Slashing . | . . . . Piercing . | . . . . Highest Corruption . | . . . . Average Corruption . | . . . . Corruption Purged . | . . . . Overload Shots . | . . . . Overflow Damage 3 | . 3 . . Projectiles . | . . . . Explosions 3 | . 3 . . Melee . | . . . . Knockbacks 2 | . . . 2 Impact 1 | . . . 1 Kinetic 1 | . . . 1 Secondary . | . . . . Self-Inflicted Damage 25 | . 19 . 6 Shots 2 | . 1 . 1 Rammed 3 | . . . 3 Targets Rammed 4 | . . . 4 Kicked . | . . . . Crushed 1 | . . . 1 Highest Temperature 30 | 12 30 . 6 Average Temperature 8 | 9 10 . 3 Received Heat Transfer 531 | 24 48 . 459 Siege Activations . | . . . . Robots Corrupted . | . . . . Combat Hostiles . | . . . . Parts Fried . | . . . . Impact Corruptions . | . . . . Robots Melted . | . . . . Combat Hostiles . | . . . . Parts Melted . | . . . . Heat Transferred . | . . . . Parts Sabotaged . | . . . . Parts Stolen . | . . . . Parts Stripped . | . . . . Power Chain Reactions . | . . . . Missiles Intercepted . | . . . . Alert | -11 -10 -10 -9 ------- Run | Scr Mat Min Mat Peak Influence 277 | 40 277 108 231 Average Influence 112 | 12 118 108 146 Maximum Alert Level 1 | . 1 . 1 Low Security (%) 87 | 100 72 100 85 Level 1 12 | . 27 . 14 Level 2 . | . . . . Level 3 . | . . . . Level 4 . | . . . . Level 5 . | . . . . High Security . | . . . . Max Security . | . . . . Squads Dispatched 4 | . . . 4 Investigation 1 | . . . 1 Extermination . | . . . . Reinforcement 3 | . . . 3 Assault . | . . . . Garrison . | . . . . Intercept . | . . . . Construction Impeded . | . . . . Haulers Reinforced . | . . . . Stealth | -11 -10 -10 -9 --------- Run | Scr Mat Min Mat Distress Signals 2 | . 1 . 1 Communications Jammed . | . . . . Distress Signals . | . . . . Times Spotted 37 | 1 13 . 23 Peak Tracking Total 12 | 1 3 . 12 Tactical Retreats 4 | . . . 4 Traps | -11 -10 -10 -9 ------- Run | Scr Mat Min Mat Traps Triggered 1 | . . . 1 Indirectly . | . . . . Trap Hack Attempts . | . . . . Triggered . | . . . . Disarmed . | . . . . Reprogrammed . | . . . . Reused . | . . . . Traps Extracted . | . . . . Installed . | . . . . Triggered . | . . . . Machines | -11 -10 -10 -9 ---------- Run | Scr Mat Min Mat Machines Disabled 5 | . 3 . 2 Max in Single Turn 1 | . 1 . 1 Machines Sabotaged . | . . . . Garrisons Compromised . | . . . . Overloaded Fab Kills . | . . . . Fab Network Shutdowns . | . . . . Hacking | -11 -10 -10 -9 --------- Run | Scr Mat Min Mat Machines Accessed 4 | . 2 . 2 Terminals 3 | . 1 . 2 Fabricators . | . . . . Repair Stations . | . . . . Recycling Units 1 | . 1 . . Scanalyzers . | . . . . Garrison Access . | . . . . Total Hacks 8 | . 6 . 2 Successful 7 | . 5 . 2 Failed 1 | . 1 . . Catastrophic . | . . . . Database Lockouts . | . . . . Manual . | . . . . Terminals 4 | . 2 . 2 Fabricators . | . . . . Repair Stations . | . . . . Recycling Units 4 | . 4 . . Scanalyzers . | . . . . Garrison Access . | . . . . Terminal Hacks 3 | . 1 . 2 Record 3 | . 1 . 2 Fabricator Hacks . | . . . . Repair Station Hacks . | . . . . Recycling Unit Hacks 4 | . 4 . . Recycle Component 1 | . 1 . . Process 2 | . 2 . . Report Inventory 1 | . 1 . . Scanalyzer . | . . . . Garrison Access Hacks . | . . . . Unauthorized Hacks . | . . . . Terminals . | . . . . Fabricators . | . . . . Repair Stations . | . . . . Recycling Units . | . . . . Scanalyzers . | . . . . Garrison Access . | . . . . Data Cores Recovered . | . . . . Used . | . . . . Hacking Detections 1 | . 1 . . Full Trace Events 1 | . 1 . . Feedback Events . | . . . . Feedback Blocked . | . . . . Robot Schematics Acquired . | . . . . Robots Built . | . . . . Matter . | . . . . Time . | . . . . Total Robot Build Rating . | . . . . Part Schematics Acquired . | . . . . Parts Built . | . . . . Matter . | . . . . Time . | . . . . Total Part Build Rating . | . . . . Parts Repaired . | . . . . Time . | . . . . Parts Recycled 1 | . 1 . . Recycled Matter 24 | . 24 . . Retrieved Matter . | . . . . Retrieved Components . | . . . . Parts Scanalyzed . | . . . . Part Schematics Acquired . | . . . . Parts Damaged . | . . . . Bothacking | -11 -10 -10 -9 ------------ Run | Scr Mat Min Mat Used RIF Installer . | . . . . Robots Hacked . | . . . . Non-combat . | . . . . Combat . | . . . . Robot Hacks Applied . | . . . . Relay Couplers Released . | . . . . Robots Rewired . | . . . . Allies Hacked . | . . . . Hacks Repelled . | . . . . Allies | -11 -10 -10 -9 -------- Run | Scr Mat Min Mat Total Allies . | . . . . Largest Group . | . . . . Highest-Rated Group . | . . . . Highest-Rated Ally . | . . . . Total Orders . | . . . . Ally Attacks . | . . . . Total Damage . | . . . . Kills . | . . . . Allies Corrupted . | . . . . Allies Melted . | . . . . Intel | -11 -10 -10 -9 ------- Run | Scr Mat Min Mat Robot Analysis Total . | . . . . Derelict Logs Recovered . | . . . . Drone Launches . | . . . . Drone Recoveries . | . . . . Exploration | -11 -10 -10 -9 ------------- Run | Scr Mat Min Mat Turns Passed 1173 | 145 334 294 400 Spaces Moved 782 | 87 176 183 336 Core 198 | 25 . . 173 Treads 458 | . 123 183 152 Legs 115 | 62 53 . . Wheels 11 | . . . 11 Hover . | . . . . Flight . | . . . . Fastest Speed 50 | 50 120 160 50 Average Speed 125 | 99 147 160 102 Slowest Speed 160 | 120 160 160 160 Overloaded Moves . | . . . . Propulsion Burnouts . | . . . . Robots Hopped . | . . . . Cave-ins Triggered . | . . . . Exploration Rate (%) 35 | 8 41 50 42 Regions Visited 3 Branch Regions 1 Pre-discovered Areas . | . . . . Known Exits Taken . | . . . . Unknown Exits Taken 3 | 1 1 1 . Scrap Searched . | . . . . Spaces Dug 12 | . . . 12 Terrain Destroyed 234 | . 158 . 76 Melee . | . . . . Projectile 2 | . . . 2 AOE 232 | . 158 . 74 Actions | -11 -10 -10 -9 --------- Run | Scr Mat Min Mat Total 901 | 124 223 184 370 Wait 10 | . 4 . 6 Move 779 | 86 175 182 336 Hop . | . . . . Pick Up 25 | 12 8 1 4 Fast Attach 1 | . . . 1 Attach 19 | 8 8 . 3 Detach 4 | 1 2 . 1 Swap 5 | 3 1 1 . Drop 11 | 1 9 . 1 Fire 43 | 13 16 . 14 Melee . | . . . . Ram 2 | . . . 2 Kick . | . . . . Crush 2 | . . . 2 Escape Stasis . | . . . . Rewire . | . . . . Trap . | . . . . Miscellaneous . | . . . . Route ------- -11/Scrapyard -10/Materials (discovered 2 exits: *Mat / [*Min]) -10/Mines -9/Materials History --------- Turn | Location | Event 2 | -11/Scrapyard | Met Revision 17 82 | -11/Scrapyard | Discovered new exit (range 8) 146 | -11/Scrapyard | Entered Materials 271 | -10/Materials | Discovered new exit (range 15) 318 | -10/Materials | Build established: Mutant 415 | -10/Materials | Discovered new exit (range 16) 480 | -10/Materials | Entered Mines 698 | -10/Mines | A weapon hastily lodged in a ceiling crevice suddenly fell to the ground 745 | -10/Mines | Discovered new exit (range 16) 774 | -10/Mines | Entered Materials 774 | -9/Materials | Evolved 2 slots: Power x1, Weapon x1 1085 | -9/Materials | Core integrity fell below 50% 1086 | -9/Materials | Lost 5 parts (2n1u2w) 1103 | -9/Materials | Core integrity fell below 20% 1174 | -9/Materials | Destroyed by Y-45 Defender with Heavy Assault Rifle Last Messages --------------- 01076_ O-16 Technician: "IFF HANDSHAKE FAILED. SECURING TERMINAL." 01076_ Acquired Structural Scanner. 01080_ ALERT: Hostiles spotted, dispatching reinforcements to Terminal M009. 01080_ L-31 Rogue knocked back. Overweight warning: You are carrying more than your current propulsion can efficiently support, which slows movement; see status page ('s') or the top of the parts list for the specific mass vs. support values. 01093_ Slammed into G-34 Mercenary. 01094_ G-34 Mercenary knocked back. 01094_ Lgt. Cannon destroyed. 01101_ Connecting with Terminal... >>Query(Terminal) Interactive station connected to the central network via reliable hard line. Relevant information is monitored and relayed by the terminal's Operator. Types of information accessible directly from each terminal are limited in order to mitigate the negative impacts of unauthorized access. Access is restricted by shielding the system behind multi-layered security, the first layer of which requires a dynamic key to clear without triggering defense mechanisms. 01132_ T-07 Excavator is excavating. 01159_ Dropped Structural Scanner. 01163_ Acquired Arm. Wheel. [Achievement: First Step to Greatness] Map ----- +----------------------------------------------------+ | | | | | ???????????????????????????????? | | ???????????????????????????????? | | ???????????????????????????????? | | ???????????????????????????????? | | ???????????????????????????????? | | ???????????????????????????????? | | ???????????????????????????????? | | ???????????????????????????????? | | ???????????????????????????????? | | ???????????????????????????????? | | ???????????????????????????????? | | ???????????????????????????????? | | #####????????###########???????? | | !!!!##???????# ####????? | | !#???????# "" """" # #####? | | !#???????# "T """" # !!#? | | ######### "" """" + !!#? | | +! # ==#? | | ########## # ==#? | | #????????# # !!#? | | +####????????# # !!#? | | ?????????????########### #####? | | ???????????????????????# #????? | | ???????????????????????# @#????? | | ??????????????????????# #???? | | ??????????????????????+ Y #???? | | ??????????????????????# #???? | | ??????????????????????# #???? | | ??????????????????????######???? | | ????????????#??#+??????????????? | | ???????????????# ??????????????? | | ???????????????# #?????????????? | | ???????????????# ??????????????? | | ???????? ? ????# ??????????????? | | ????????# ????# ??????????????? | | ????????# ????# #????????####?? | | ????????# ??## #?????? #?? | | ??#????# ???# ###?? "" ??? | | ???????# ?#?# # ""???? | | ???????# ???# + """ T????? | | ???????# ???# # """ "????? | | #??????+ ???# #??"" "????? | | #??????# ???# #???? ???#?? | | #?"????# ???# #???????????? | | #??????# #### #####???????? | | #??????# #???????? | | #??????# #???????# | | #??????# #???????? | +----------------------------------------------------+ Best States ------------- Heat Dissipation 28 Energy Generation 10 Energy Capacity 250 Matter Stores 298 Matter Capacity 300 Sight Range 16 Terrain Scan Range 16 Terrain Scan Density 60 Armor Coverage 150 Utility Shielding 33 Evasion (%) 50 Recoil Reduction 2 Item Schematics ----------------- None Robot Schematics ------------------ None Fabricated ------------ Nothing Alien Tech Used ----------------- None Achievements -------------- Crack Shot First Step to Greatness Loot Pinata Oops Remodeling Uninvited Guest Challenges ------------ None Game ------ Seed TerrainSiegeInitializer Manual? 0 Play Time 00:52:02 Cumulative 1.7 hours Start 2020.05.19 @ 14:56:37 End 2020.05.19 @ 16:00:46 Sessions 1 Manual Loads 0 Difficulty Rogue Special Mode None Game No. 1 Rogue 1 Adventurer 0 Explorer 0 Win Type - Total 0 Types 0/0/0/0/0/0/0 Lore% 0 Gallery% 1 Achievement% 2 Wizard Run 0 Options --------- ASCII 0 Keyboard 0 Movement Mouse Keybinds 0 Fullscreen 1 Font 24/Terminus Map View 113x50 Tactical HUD 1 Map Filters NONE Filters NONE Steam 1 RUN: ed43b9e0-cfd5-4711-a852-4ddd05db2b10